[Event "Pan-American Collegiate-ch 2025"]
[Site "Charlotte"]
[Date "2025.01.04"]
[Round "4.13"]
[White "Liang, Awonder"]
[Black "Lomasov, Semyon"]
[Result "0-1"]
[Annotator "TA"]
[ECO "C10"]
[WhiteElo "2687"]
[BlackElo "2559"]
[PlyCount "118"]
[EventDate "2025.01.02"]
[EventType "team-tourn"]
[EventCountry "USA"]
[SourceTitle "playchess.com"]
[Source "ChessBase"]
[SourceQuality "1"]
[TimeControl "5400+30"]

{[%evp 9,118,14,27,0,3,8,21,15,10,10,12,20,25,12,25,4,15,13,27,29,18,10,16,10,13,13,35,32,53,59,49,60,56,61,52,13,13,-18,-14,-17,0,-28,-42,-52,-26,-35,-5,-118,-115,-120,-106,-164,-177,-174,-179,-183,-156,-179,-153,-145,-141,-152,-135,-119,-139,-139,-137,-132,-141,-137,-134,-259,-259,-137,-146,-537,-541,-529,-516,-509,-496,-889,-875,-1279,-1191,-1411,-1283,-1411,-1077,-1192,-1134,-5608,-5466,-29957,-29947,-7120,-6528,-29971,-29972,-29972,-29973,-29970,-29973,-29974,-29975,-29980,-29965,-29982,-29983,-29982,-29983]} 1. e4 {[%emt 0:00:29]} e6 {[%emt 0:00:53]} 2. d4 {[%emt 0:00:06]} d5 {[%emt 0:00:04]} 3. exd5 {[%emt 0:00:04]} exd5 {[%emt 0:00:06]} 4. Nf3 {[%emt 0:00:05]} Nc6 {[%emt 0:03:33]} 5. Nc3 {[%emt 0:00:17]} Nf6 {[%emt 0:01:18]} 6. h3 {[%emt 0:08:26]} h6 {[%emt 0:10:56]} 7. Bd3 {[%emt 0:02:09]} Bd6 {[%emt 0:03:12]} 8. Nb5 {[%emt 0:01:13]} O-O {[%emt 0:02:18]} 9. O-O {[%emt 0:01:02]} Re8 {[%emt 0:01:44]} 10. c3 {[%emt 0:02:29]} Ne4 {[%emt 0:07:26]} 11. Nxd6 {[%emt 0:01:07]} Qxd6 {[%emt 0:01:00]} 12. Be3 {[%emt 0:01:27]} Bf5 {[%emt 0:10:52]} (12... Qg6 {feels hotter.} 13. Nh4 Qf6 14. Qh5 Ne7) 13. Re1 {[%emt 0:00:20]} Bh7 {[%emt 0:02:40]} 14. Qc1 {[%emt 0:07:15]} Re7 {[%emt 0:02:08]} 15. Bf4 {[%emt 0:02:14]} Qf6 {[%emt 0:01:11]} 16. Bh2 {[%emt 0:00:26]} Rae8 {[%emt 0:12:21]} 17. Qc2 {[%emt 0:00:31]} Nd8 {[%emt 0:09:40]} (17... Bg6 $5) 18. Re3 {[%emt 0:01:43]} c6 {[%emt 0:04:16]} 19. Rae1 {[%emt 0:03:54]} Ng5 {[%emt 0:02:01]} 20. Bxh7+ {[%emt 0:04:42]} Nxh7 {[%emt 0:00:07]} 21. Ne5 {[%emt 0:00:04][%cal Oe5d7]} (21. Be5 $5 Qg6 $8 22. Qxg6 fxg6 23. Nh4 $14) 21... Qh4 {[%emt 0:01:37]} 22. f4 {[%emt 0:07:52] Hoping for Bg3.} (22. Qd2 Nf6 23. f3 Nh7 24. Qf2) 22... f6 {[%emt 0:05:40]} 23. g3 {[%emt 0:06:09]} (23. Bg3 {simplifies} Qh5 24. Ng4 Rxe3 25. Rxe3 Rxe3 26. Nxe3 Qe8 27. Nf5) 23... Qxh3 {[%emt 0:00:13]} 24. g4 {[%emt 0:00:05]} Rxe5 $1 {[%emt 0:02:14]} (24... Qh4 25. Bg3 Rxe5 (25... Qh3 $2 26. Bf2 $18) 26. Bxh4 $16) 25. fxe5 {[%emt 0:00:11]} (25. dxe5 $5 Qxg4+ $8 26. Kh1 $11) 25... Qxg4+ {[%emt 0:00:12]} 26. Kh1 $1 {[%emt 0:01:19]} fxe5 {[%emt 0:02:37]} 27. Bxe5 {[%emt 0:00:24]} Ne6 {[%emt 0:05:16]} 28. Bxg7 {[%emt 0:03:22]} Nhg5 $1 $17 {[%emt 0:01:55]} (28... Kxg7 $2 29. Rg1 Neg5 30. Rxg4 $18 (30. Rxe8 $2 Qh5+ 31. Qh2 Qxe8 $19)) 29. Be5 {[%emt 0:24:17] Intending Qg6+ and mate.} Nf3 {[%emt 0:00:06] Really sharp!} 30. Rxf3 {[%emt 0:00:08]} Qxf3+ $19 {[%emt 0:00:05]} 31. Qg2+ {[%emt 0:00:03]} Ng5 {[%emt 0:01:20]} 32. Rf1 {[%emt 0:01:17]} Qxg2+ {[%emt 0:00:12]} 33. Kxg2 {[%emt 0:00:01][%mdl 4096] Endgame KRB-KRN. Black is a pawn up.} Rf8 {[%emt 0:00:17]} 34. Rc1 {[%emt 0:01:34]} Ne4 {[%emt 0:02:33]} 35. c4 {[%emt 0:00:02]} Rf2+ {[%emt 0:01:28]} 36. Kh3 {[%emt 0:00:13]} dxc4 {[%emt 0:01:30]} (36... Rxb2 37. cxd5 Nf2+ (37... Rxa2 38. dxc6 Ng5+ 39. Kg4 $11) (37... cxd5 38. Rc7 $15) 38. Kh4 $15) 37. Rxc4 {[%emt 0:00:02]} Kf7 {[%emt 0:01:09][%cal Of7e6] Black is more active.} (37... Rxb2 38. d5 Ng5+ (38... Rxa2 39. Rxe4 cxd5 40. Rh4 $11) 39. Kg3 $17) 38. Rb4 {[%emt 0:01:29]} b5 $1 {[%emt 0:01:49]} 39. d5 {[%emt 0:00:02]} Re2 $1 {[%emt 0:00:39]} 40. Bf4 {[%emt 0:02:56]} (40. Bc7 $17) 40... a5 $1 {[%emt 0:01:00]} (40... cxd5 41. Rxb5 d4 42. Kg4 $17) 41. Rb3 {[%emt 0:00:46]} a4 {[%emt 0:00:01]} 42. Rb4 $2 {[%emt 0:00:07][%mdl 8192]} (42. Re3 $17 Rxe3+ (42... Rxb2 43. dxc6 Nf6 44. Rc3 $11) 43. Bxe3) 42... Nf2+ {[%emt 0:00:11]} (42... cxd5 43. Rxb5 h5 44. Rxd5 $11) 43. Kg3 {[%emt 0:00:01]} Nd3 {[%emt 0:01:33]} (43... cxd5 44. Rxb5 a3 45. bxa3 $11) 44. Rd4 {[%emt 0:00:01]} Nxf4 {[%emt 0:00:08]} (44... Nxb2 45. dxc6 (45. Bxh6 $2 c5 $19) 45... Nc4 46. c7 $18 (46. Bxh6 Rc2 $11)) 45. Rxf4+ {[%emt 0:00:03] KR-KR. Black is a pawn up.} (45. Kxf4 $142 c5 (45... Rxb2 46. dxc6 Ke6 47. Ke3 $17) 46. Rd1) 45... Ke7 {[%emt 0:00:05]} 46. dxc6 {[%emt 0:01:38]} Rxb2 {[%emt 0:00:03][%cal Oe7d6] aiming for ...Kd6!.} 47. Rf5 {[%emt 0:00:37]} Kd6 {[%emt 0:01:16]} (47... Rxa2 48. Rxb5 Kd6 49. Rb6 $17) 48. Rc5 {[%emt 0:00:05] [#]} Kc7 $1 {[%emt 0:00:02]} (48... Kxc5 49. c7 Kb4 (49... Rxa2 50. c8=Q+ Kb4 51. Qf8+ Kb3 52. Qf3+ Kb4 53. Qe4+ Kc3 54. Qe5+ Kb4 55. Qd4+ Ka5 56. Qc3+ Ka6 57. Kf4 $18) (49... Rb3+ $2 50. axb3 axb3 51. c8=Q+ $18) 50. c8=Q $16 (50. c8=B $2 {is the wrong capture.} Rxa2 51. Be6 Re2 $19)) 49. a3 {[%emt 0:01:24]} Rb3+ {[%emt 0:00:30]} 50. Kg2 {[%emt 0:01:03]} h5 {[%emt 0:01:02]} (50... Rxa3 51. Rxb5 Ra2+ (51... Kxc6 52. Ra5 $17) 52. Kg1 $17) 51. Kh2 {[%emt 0:00:02]} h4 {[%emt 0:00:20]} ({Less strong is} 51... Rxa3 52. Rxb5 Kxc6 53. Rb4 $17) 52. Kg2 {[%emt 0:00:07]} Rxa3 {[%emt 0:00:55] ( -> ...h3+)} 53. Rxb5 {[%emt 0:00:01]} Kxc6 {[%emt 0:00:43]} 54. Rb4 {[%emt 0:00:04]} Rg3+ {[%emt 0:00:28]} 55. Kf2 {[%emt 0:00:01]} a3 {[%emt 0:00:17]} 56. Rxh4 {[%emt 0:00:04]} Rc3 {[%emt 0:00:45]} 57. Ke2 {[%emt 0:00:53]} Kb5 {[%emt 0:00:01]} 58. Rh8 {[%emt 0:03:10]} a2 {[%emt 0:00:22]} 59. Ra8 {[%emt 0:00:07] [#]} Rh3 $1 {[%emt 0:00:02]} 0-1

[Event "Pan-American Collegiate-ch 2025"]
[Site "Charlotte"]
[Date "2025.01.04"]
[Round "4.14"]
[White "Tiglon, Bryce"]
[Black "Bykhovsky, Anatoly"]
[Result "1/2-1/2"]
[Annotator "TA"]
[ECO "C18"]
[WhiteElo "2530"]
[BlackElo "2496"]
[PlyCount "104"]
[EventDate "2025.01.02"]
[EventType "team-tourn"]
[EventCountry "USA"]
[SourceTitle "playchess.com"]
[Source "ChessBase"]
[SourceQuality "1"]
[TimeControl "5400+30"]

{[%evp 33,104,-2,-8,0,0,-12,47,39,35,50,41,46,44,48,52,0,32,13,24,22,21,26,40,33,60,37,57,12,29,27,11,-10,-14,-23,-8,-10,0,-9,0,0,0,0,0,0,3,0,21,0,0,4,0,0,0,-8,-8,-8,-8,-8,0,0,0,0,0,0,0,-2,-4,-8,0,0,0,0,0]} 1. e4 {[%emt 0:09:24]} e6 {[%emt 0:00:55]} 2. d4 {[%emt 0:00:11]} d5 {[%emt 0:00:03]} 3. Nc3 {[%emt 0:00:07]} Bb4 {[%emt 0:00:08]} 4. e5 {[%emt 0:00:06]} c5 {[%emt 0:00:07]} 5. a3 {[%emt 0:00:10]} Bxc3+ {[%emt 0:00:04]} 6. bxc3 {[%emt 0:00:03]} Qa5 {[%emt 0:00:43]} 7. Bd2 {[%emt 0:00:22]} Qa4 {[%emt 0:00:08]} 8. Qg4 {[%emt 0:03:08]} Kf8 {[%emt 0:01:16]} 9. Nf3 {[%emt 0:01:15]} b6 {[%emt 0:07:37]} 10. c4 {[%emt 0:01:04]} Ne7 {[%emt 0:03:45]} 11. cxd5 {[%emt 0:12:24]} exd5 {[%emt 0:11:43]} 12. Qf4 {[%emt 0:02:42]} Nbc6 {[%emt 0:05:24]} 13. dxc5 {[%emt 0:26:43]} Qxf4 {[%emt 0:00:05]} 14. Bxf4 {[%emt 0:00:06]} bxc5 {[%emt 0:00:04]} 15. h3 {[%emt 0:04:50]} Rb8 {[%emt 0:22:04]} 16. Kd2 {[%emt 0:04:32]} Be6 {[%emt 0:00:47]} 17. Be2 {[%emt 0:02:31]} Ke8 {[%emt 0:00:08]} 18. Rhb1 {[%emt 0:02:12]} Kd7 {[%emt 0:01:43]} 19. c3 {[%emt 0:05:30]} Rb6 {[%emt 0:18:28]} (19... Na5 $11 20. Bb5+ Kd8) 20. Rb5 $1 $14 {[%emt 0:05:11]} Rxb5 {[%emt 0:02:53]} 21. Bxb5 {[%emt 0:00:01]} Rb8 {[%emt 0:00:12]} 22. a4 {[%emt 0:01:08]} Kc7 {[%emt 0:05:56]} 23. Be3 {[%emt 0:01:03]} Na5 {[%emt 0:05:51]} 24. Ke1 {[%emt 0:00:17]} ({White should try} 24. Kc2 $1 $14) 24... Nb7 {[%emt 0:00:57]} 25. Ba6 {[%emt 0:07:36]} Nf5 {[%emt 0:05:02]} 26. Bg5 {[%emt 0:02:03]} h6 {[%emt 0:00:43]} 27. Bc1 {[%emt 0:01:01]} Kb6 {[%emt 0:03:07]} 28. Be2 {[%emt 0:01:28]} a6 {[%emt 0:00:17]} 29. Rb1+ {[%emt 0:02:36]} Ka7 $1 {[%emt 0:00:01]} 30. a5 {[%emt 0:02:38]} (30. g4 $5 Ne7 $8 31. Kf1 $11) 30... Nxa5 {[%emt 0:01:09]} 31. Rxb8 {[%emt 0:00:08]} Kxb8 {[%emt 0:00:05]} 32. Bxa6 {[%emt 0:00:02]} Kc7 {[%emt 0:01:15]} 33. Bb5 {[%emt 0:00:57]} Bd7 {[%emt 0:00:34]} 34. Bd3 {[%emt 0:00:09]} Ne7 {[%emt 0:01:23]} 35. g4 {[%emt 0:01:25]} Kb6 {[%emt 0:00:18]} 36. Nh4 {[%emt 0:00:27]} Nac6 {[%emt 0:02:55]} 37. f4 {[%emt 0:00:05]} d4 {[%emt 0:00:19]} 38. cxd4 {[%emt 0:00:31]} Nxd4 {[%emt 0:00:07]} 39. f5 {[%emt 0:01:15]} Bb5 {[%emt 0:01:01]} 40. Bxb5 {[%emt 0:01:04]} Kxb5 {[%emt 0:00:07]} 41. f6 {[%emt 0:00:12]} gxf6 {[%emt 0:00:05]} 42. exf6 {[%emt 0:00:03]} Ng8 {[%emt 0:00:04]} 43. Ng2 {[%emt 0:01:43]} Kc6 {[%emt 0:00:10]} 44. Nf4 {[%emt 0:01:10]} Nxf6 {[%emt 0:00:16]} 45. Nd3 {[%emt 0:00:05]} h5 {[%emt 0:03:01]} 46. gxh5 {[%emt 0:00:47]} Kd5 {[%emt 0:00:00]} 47. h6 {[%emt 0:00:13]} c4 {[%emt 0:00:00]} 48. Nf4+ {[%emt 0:01:08]} Ke4 {[%emt 0:00:00]} 49. Nh5 {[%emt 0:00:21]} Nh7 $1 {[%emt 0:00:10]} (49... Nxh5 $2 {too greedy.} 50. h7 $18) 50. Bb2 {[%emt 0:00:14]} Kd3 {[%emt 0:01:26]} 51. Bxd4 {[%emt 0:00:29]} Kxd4 {[%emt 0:00:05]} 52. Kd2 {[%emt 0:00:11]} Ke5 {[%emt 0:00:57]} 1/2-1/2

[Event "Pan-American Collegiate-ch 2025"]
[Site "Charlotte"]
[Date "2025.01.04"]
[Round "4.15"]
[White "Chandran, Kapil"]
[Black "Yip, Carissa"]
[Result "1/2-1/2"]
[Annotator "TA"]
[ECO "C95"]
[WhiteElo "2360"]
[BlackElo "2416"]
[PlyCount "86"]
[EventDate "2025.01.02"]
[EventType "team-tourn"]
[EventCountry "USA"]
[SourceTitle "playchess.com"]
[Source "ChessBase"]
[SourceQuality "1"]
[TimeControl "5400+30"]

{[%evp 30,86,25,15,22,16,23,-7,-14,0,0,-23,-31,-29,0,0,14,0,0,0,35,27,32,-31,-23,-11,0,-29,-31,-31,-29,-5,-15,-16,-27,-21,-47,-29,-8,-16,0,0,0,0,20,0,47,0,0,0,0,0,15,0,0,0,0,0,0]} 1. e4 {[%emt 0:00:01]} e5 {[%emt 0:16:37]} 2. Nf3 {[%emt 0:00:08]} Nc6 {[%emt 0:00:05]} 3. Bb5 {[%emt 0:00:18][%cal Bf1b5,Bb5a4,Ba4b3][%mdl 32]} a6 {[%emt 0:00:58]} 4. Ba4 {[%emt 0:00:08]} Nf6 {[%emt 0:00:25]} 5. O-O {[%emt 0:00:11]} Be7 {[%emt 0:04:07]} 6. Re1 {[%emt 0:00:21]} b5 {[%emt 0:00:08]} 7. Bb3 {[%emt 0:00:07]} d6 {[%emt 0:00:25]} 8. c3 {[%emt 0:00:22]} O-O {[%emt 0:00:08]} 9. h3 {[%emt 0:00:10]} Nb8 {[%emt 0:02:55]} 10. d4 {[%emt 0:00:23]} Nbd7 {[%emt 0:00:03]} 11. Nbd2 {[%emt 0:00:45]} Bb7 {[%emt 0:00:05]} 12. Bc2 {[%emt 0:05:41]} Re8 {[%emt 0:00:07]} 13. a4 {[%emt 0:00:29]} Bf8 {[%emt 0:00:33]} 14. Bd3 {[%emt 0:05:51]} c6 {[%emt 0:01:36][%cal Bc7c6,Bc6c5][%mdl 32]} 15. b3 {[%emt 0:02:15]} g6 {[%emt 0:05:09]} 16. Bb2 {[%emt 0:01:09]} Bg7 {[%emt 0:00:10]} 17. Qc2 {[%emt 0:01:23]} Rc8 {[%emt 0:08:23]} 18. c4 {[%emt 0:04:33][%cal Ra4b5]} exd4 {[%emt 0:05:29]} 19. Bxd4 {[%emt 0:02:05]} c5 {[%emt 0:01:41]} 20. Bb2 {[%emt 0:02:15]} b4 {[%emt 0:00:04]} 21. Nf1 {[%emt 0:03:05]} Re7 {[%emt 0:01:25]} 22. Rad1 {[%emt 1:09:50]} Qf8 {[%emt 0:04:23]} 23. Ng3 {[%emt 0:00:00]} Rce8 {[%emt 0:00:46]} 24. Qb1 {[%emt 0:00:00]} h6 {[%emt 0:08:14]} 25. Bc2 {[%emt 0:00:00]} Re6 {[%emt 0:00:40]} 26. Nd2 {[%emt 0:00:00]} (26. Nh4 $14) 26... h5 $15 {[%emt 0:04:14]} 27. Nf3 {[%emt 0:00:00]} Nh7 {[%emt 0:00:29] Prevents Ng5} 28. h4 {[%emt 0:00:00]} Bxb2 {[%emt 0:02:16]} 29. Qxb2 {[%emt 0:00:00]} Qe7 {[%emt 0:00:04]} 30. Qc1 {[%emt 0:00:00]} Ne5 {[%emt 0:03:10] ...Nxf3+ is the strong threat.} 31. Ng5 $1 {[%emt 0:00:00]} Nxg5 {[%emt 0:00:09]} 32. Qxg5 {[%emt 0:00:00]} Qxg5 {[%emt 0:06:28]} 33. hxg5 {[%emt 0:00:00]} Nc6 {[%emt 0:00:10]} 34. Ne2 {[%emt 0:00:00] Dodges Nd4} Rd8 {[%emt 0:00:03]} 35. Rd2 {[%emt 0:00:00]} Kf8 {[%emt 0:04:33]} 36. Red1 {[%emt 0:00:00]} Ke8 {[%emt 0:01:15]} 37. f3 {[%emt 0:00:00]} Ke7 {[%emt 0:04:59]} 38. Nf4 {[%emt 0:00:00]} (38. Kf2 $1 $14 {deserves consideration.}) 38... Re5 $11 {[%emt 0:00:04]} 39. Nd5+ {[%emt 0:00:00]} Kf8 {[%emt 0:00:36]} 40. f4 {[%emt 0:00:00]} Re6 {[%emt 0:00:09]} 41. Nc7 {[%emt 0:00:00]} Re7 {[%emt 0:00:04]} 42. Nd5 {[%emt 0:00:00]} (42. Rxd6 $2 {perishes.} Rxd6 43. Rxd6 Rxc7 $19) 42... Re6 {[%emt 0:00:05]} 43. Nc7 {[%emt 0:00:00]} Re7 {[%emt 0:00:04]} 1/2-1/2

[Event "Pan-American Collegiate-ch 2025"]
[Site "Charlotte"]
[Date "2025.01.04"]
[Round "4.18"]
[White "Schitco, Ivan"]
[Black "Shen, Christopher"]
[Result "1-0"]
[Annotator "TA"]
[ECO "E94"]
[WhiteElo "2486"]
[BlackElo "2349"]
[PlyCount "85"]
[EventDate "2025.01.02"]
[EventType "team-tourn"]
[EventCountry "USA"]
[SourceTitle "playchess.com"]
[Source "ChessBase"]
[SourceQuality "1"]
[TimeControl "5400+30"]

{[%evp 14,85,18,35,73,24,14,10,56,56,63,22,55,55,93,105,116,113,112,121,153,144,169,178,157,121,116,119,125,122,132,71,165,112,105,96,122,126,100,87,109,25,21,0,71,60,56,60,79,18,199,193,188,185,493,485,595,603,591,571,528,379,382,517,488,385,29968,29969,29972,29976,29978,29979,29985,29986]} 1. c4 {[%emt 0:00:03]} Nf6 {[%emt 0:08:24]} 2. Nf3 {[%emt 0:00:08]} g6 {[%emt 0:00:16]} 3. Nc3 {[%emt 0:00:12]} Bg7 {[%emt 0:00:09]} 4. e4 {[%emt 0:00:08]} d6 {[%emt 0:00:28]} 5. d4 {[%emt 0:00:12]} O-O {[%emt 0:00:35]} 6. Be2 {[%emt 0:00:14]} Na6 {[%emt 0:00:07]} 7. O-O {[%emt 0:00:44]} e5 {[%emt 0:00:05]} 8. Re1 {[%emt 0:00:52]} Ng4 {[%emt 0:13:31]} 9. d5 {[%emt 0:07:58]} (9. Bg5 $16 f6 10. Bh4) 9... f5 $11 {[%emt 0:03:58]} 10. Ng5 {[%emt 0:17:43]} Nh6 {[%emt 0:14:58]} (10... h6 $11 {should be considered.}) 11. exf5 $14 {[%emt 0:18:24]} gxf5 {[%emt 0:13:24]} 12. f4 {[%emt 0:06:42]} (12. Ne6 Bxe6 13. dxe6 c6 $15) 12... e4 {[%emt 0:03:15]} 13. Be3 {[%emt 0:02:13]} Qf6 {[%emt 0:07:02]} 14. Rb1 {[%emt 0:03:30] White has more active pieces.} Nf7 {[%emt 0:07:41] [#]} 15. Nxf7 $1 {[%emt 0:07:26]} Qxf7 {[%emt 0:01:56]} 16. Nb5 {[%emt 0:02:39]} Bf6 {[%emt 0:01:38]} 17. b4 {[%emt 0:02:54]} (17. Bxa7 b6 $11) (17. Nxa7 $6 Bd7 $14) 17... Bd7 {[%emt 0:03:24]} 18. Kh1 {[%emt 0:03:36]} (18. Bxa7 b6 $11) (18. Nxa7 $6 Bc3 $16) 18... Kh8 {[%emt 0:05:40]} 19. g4 {[%emt 0:02:21]} (19. Bxa7 b6 $11) 19... fxg4 {[%emt 0:02:09]} 20. Bxg4 {[%emt 0:00:08]} (20. Nxa7 Rg8 $14) 20... Rg8 {[%emt 0:01:06]} 21. Bxd7 {[%emt 0:02:17]} Qxd7 {[%emt 0:00:02]} 22. Qh5 {[%emt 0:00:10] Dodges Qh3} (22. Bxa7 $6 b6 $14 (22... Qh3 23. Qe2 $14)) (22. Bd4 $142 Raf8 23. Bxf6+ (23. Bxa7 c6 $17) (23. Nxa7 Qh3 $14) (23. Rxe4 c6 $14) 23... Rxf6 24. Qd4 (24. Nxa7 Qh3 $15) (24. Rxe4 Qg7 $14)) 22... c5 {[%emt 0:04:23]} (22... c6 $16 {was worth a try.} 23. Nd4 (23. Nxa7 cxd5 24. cxd5 Nc7 $11) 23... Nxb4) 23. a3 {[%emt 0:02:25]} ({White should play} 23. bxc5 $18 Nxc5 24. Nd4 (24. Bxc5 dxc5 25. d6 Rg6 $18)) 23... b6 $16 {[%emt 0:00:56]} 24. Rg1 {[%emt 0:02:53]} Rxg1+ {[%emt 0:00:49]} 25. Rxg1 {[%emt 0:01:39]} Rg8 {[%emt 0:00:03]} 26. Rxg8+ {[%emt 0:04:05]} Kxg8 {[%emt 0:00:01]} 27. Bd2 {[%emt 0:00:06]} (27. bxc5 $16 Nxc5 28. Nd4) 27... e3 $11 {[%emt 0:02:58]} 28. Be1 {[%emt 0:00:58]} Kg7 {[%emt 0:01:10] [#]} (28... cxb4 $11 29. axb4 Kh8) 29. Kg2 $1 $16 {[%emt 0:01:53]} cxb4 $1 {[%emt 0:00:32]} 30. axb4 {[%emt 0:00:13]} Nc7 {[%emt 0:00:17]} 31. Nc3 {[%emt 0:02:00]} (31. Bc3 $16 {Qg5+ would now be deadly.} Bxc3 32. Qg5+ (32. Nxc3 Ne8 $16) 32... Kh8 33. Nxc3) 31... Qf7 $2 {[%emt 0:03:30]} (31... b5 $1 $11 {and Black has nothing to worry.}) 32. Qxf7+ $18 {[%emt 0:01:13]} Kxf7 {[%emt 0:00:01][%mdl 4096] Endgame KBN-KBN} 33. Ne4 {[%emt 0:00:20]} b5 $2 {[%emt 0:01:19]} (33... Be7 {is more resistant.} 34. b5 (34. Kf3 b5 $16) 34... a6) 34. Nxd6+ {[%emt 0:00:11]} Ke7 {[%emt 0:00:01]} 35. Ne4 {[%emt 0:01:11]} Kf7 {[%emt 0:00:35]} 36. d6 {[%emt 0:00:12][%cal Bd5d6,Bd6d7][%mdl 32]} Ne6 {[%emt 0:00:14]} 37. f5 {[%emt 0:01:49]} (37. cxb5 Nxf4+ 38. Kf3 Be5 $18) 37... Nf4+ {[%emt 0:01:02]} 38. Kf3 {[%emt 0:00:04]} Nd3 {[%emt 0:00:11]} 39. Bg3 {[%emt 0:03:01]} Nxb4 $2 {[%emt 0:01:01]} (39... bxc4 $18 40. Nxf6 (40. Kxe3 Nxb4 41. Nxf6 Kxf6 $18) 40... Kxf6 41. Kxe3 Nxb4) 40. Nxf6 {[%emt 0:01:04]} Kxf6 {[%emt 0:00:01]} 41. d7 {[%emt 0:01:42]} Nc6 {[%emt 0:01:19]} 42. cxb5 {[%emt 0:00:19]} Nd4+ {[%emt 0:00:06]} 43. Ke4 {[%emt 0:00:06]} 1-0

[Event "Pan-American Collegiate-ch 2025"]
[Site "Charlotte"]
[Date "2025.01.04"]
[Round "4.19"]
[White "Yu, Jennifer"]
[Black "Juksta, Karolis"]
[Result "0-1"]
[Annotator "TA"]
[ECO "D35"]
[WhiteElo "2283"]
[BlackElo "2409"]
[PlyCount "50"]
[EventDate "2025.01.02"]
[EventType "team-tourn"]
[EventCountry "USA"]
[SourceTitle "playchess.com"]
[Source "ChessBase"]
[SourceQuality "1"]
[TimeControl "5400+30"]

{[%evp 12,50,23,22,27,28,37,22,36,29,20,40,24,6,6,15,23,20,19,0,8,4,30,8,14,-79,-72,-380,-380,-595,-576,-613,-630,-633,-623,-947,-939,-918,-830,-830,-807]} 1. d4 {[%emt 0:12:16]} d5 {[%emt 0:00:29]} 2. c4 {[%emt 0:00:12]} e6 {[%emt 0:00:07]} 3. Nc3 {[%emt 0:00:17]} Nf6 {[%emt 0:00:24]} 4. cxd5 {[%emt 0:00:26]} exd5 {[%emt 0:00:07]} 5. Bg5 {[%emt 0:00:20]} Be7 {[%emt 0:00:26]} 6. e3 {[%emt 0:00:22]} h6 {[%emt 0:00:14]} 7. Bh4 {[%emt 0:00:47]} Bg4 {[%emt 0:00:58]} 8. f3 {[%emt 0:07:41]} Be6 {[%emt 0:00:57]} 9. Bd3 {[%emt 0:01:13]} c5 {[%emt 0:00:25]} 10. Nge2 {[%emt 0:00:53]} Nc6 {[%emt 0:00:30]} 11. O-O {[%emt 0:02:15]} O-O {[%emt 0:00:41]} 12. dxc5 {[%emt 0:04:43]} Bxc5 {[%emt 0:00:40]} 13. Bf2 {[%emt 0:00:09]} a6 {[%emt 0:07:04]} 14. Rc1 {[%emt 0:05:12]} Ba7 {[%emt 0:12:26]} 15. Bb1 {[%emt 0:05:24]} Rc8 {[%emt 0:05:20]} 16. Nd4 {[%emt 0:16:40]} Qd7 {[%emt 0:10:43]} 17. Nxc6 {[%emt 0:05:48]} Rxc6 {[%emt 0:04:45]} 18. Qd3 {[%emt 0:00:11]} (18. Re1 $11) 18... d4 $1 $17 {[%emt 0:08:46]} 19. Ne4 $2 {[%emt 0:09:52][%mdl 8192] [#]} (19. exd4 $17 {nothing else works.} Bc4 20. Qd2 Bxf1 21. Rxf1) 19... Nxe4 $1 $19 {[%emt 0:04:38]} 20. Qxe4 {[%emt 0:00:36]} (20. Rxc6 {was worth a try.} Qxc6 (20... dxe3 21. Qxe4 $19) 21. exd4) 20... f5 {[%emt 0:01:17]} 21. Qe5 {[%emt 0:02:42] [#]} dxe3 $1 {[%emt 0:02:38]} 22. Bxe3 {[%emt 0:03:52]} Qd6 {[%emt 0:01:34]} 23. Qxe6+ {[%emt 0:10:07]} Qxe6 {[%emt 0:00:07]} 24. Bxa7 {[%emt 0:00:02]} b6 {[%emt 0:06:06]} 25. Bc2 {[%emt 0:00:37]} Kh8 {[%emt 0:02:22]} 0-1